[Event "Early-Titled-Tuesday-Blitz-February-27-2024"]
[Site "Chess.com"]
[Date "2024.02.27"]
[Round "5"]
[White "Chess4always"]
[Black "AnaKuchava"]
[Result "1-0"]
[WhiteElo "1972"]
[BlackElo "2182"]
[TimeControl "180+1"]
[EndTime "8:53:19 PST"]
[Termination "Chess4always won on time"]

1. d4 {[%clk 0:02:59.8]} 1... d5 {[%clk 0:02:57.2]} 2. Nf3 {[%clk 0:02:59.3]}
2... Nf6 {[%clk 0:02:51.8]} 3. Bf4 {[%clk 0:02:58.6]} 3... Bf5 {[%clk
0:02:47.5]} 4. e3 {[%clk 0:02:56.3]} 4... e6 {[%clk 0:02:34]} 5. Ne5 {[%clk
0:02:55.9]} 5... Bd6 {[%clk 0:02:28.5]} 6. g4 {[%clk 0:02:55.3]} 6... Bxe5
{[%clk 0:01:57.3]} 7. dxe5 {[%clk 0:02:23.5]} 7... Nxg4 {[%clk 0:01:43.2]} 8.
Be2 {[%clk 0:02:17.6]} 8... Nh6 {[%clk 0:01:14.2]} 9. Bxh6 {[%clk 0:02:16.4]}
9... gxh6 {[%clk 0:01:15.1]} 10. c4 {[%clk 0:02:16]} 10... c6 {[%clk 0:01:10.4]}
11. Nc3 {[%clk 0:02:14.6]} 11... Qc7 {[%clk 0:00:58]} 12. f4 {[%clk 0:02:12.4]}
12... Qb6 {[%clk 0:00:46.6]} 13. Qd2 {[%clk 0:02:10.4]} 13... Nd7 {[%clk
0:00:45.4]} 14. a4 {[%clk 0:02:06.5]} 14... Nc5 {[%clk 0:00:37.5]} 15. a5 {[%clk
0:02:03.2]} 15... Qb4 {[%clk 0:00:17.7]} 16. Ra3 {[%clk 0:01:57]} 16... Rd8
{[%clk 0:00:10.6]} 17. cxd5 {[%clk 0:01:55.2]} 17... cxd5 {[%clk 0:00:08.1]} 18.
Nb5 {[%clk 0:01:31.8]} 18... Qxd2+ {[%clk 0:00:07.7]} 19. Kxd2 {[%clk
0:01:32.4]} 19... Ke7 {[%clk 0:00:06.6]} 20. Bf3 {[%clk 0:01:20.8]} 20... Ne4+
{[%clk 0:00:04.8]} 21. Bxe4 {[%clk 0:01:20.8]} 21... Bxe4 {[%clk 0:00:05.7]} 22.
Rc1 {[%clk 0:01:20.7]} 22... a6 {[%clk 0:00:04.8]} 23. Nd6 {[%clk 0:01:20.9]}
23... Rd7 {[%clk 0:00:04.2]} 24. Rac3 {[%clk 0:01:21.2]} 24... f6 {[%clk
0:00:03.4]} 25. Nc8+ {[%clk 0:01:10.4]} 25... Kf7 {[%clk 0:00:03.3]} 26. exf6
{[%clk 0:01:10.7]} 26... Kxf6 {[%clk 0:00:03.4]} 27. Nb6 {[%clk 0:01:11.1]}
27... Re7 {[%clk 0:00:02.6]} 28. Rc7 {[%clk 0:01:11.1]} 28... Rhe8 {[%clk
0:00:02.7]} 29. Ke2 {[%clk 0:01:07.2]} 29... Rxc7 {[%clk 0:00:02.1]} 30. Rxc7
{[%clk 0:01:08.1]} 30... Re7 {[%clk 0:00:02.8]} 31. Rc8 {[%clk 0:01:08.2]} 31...
Rg7 {[%clk 0:00:02.3]} 32. Rf8+ {[%clk 0:01:05.9]} 32... Ke7 {[%clk 0:00:01.5]}
33. Rb8 {[%clk 0:01:04.1]} 33... Rg2+ {[%clk 0:00:02.1]} 34. Kf1 {[%clk
0:01:04.3]} 34... Rxb2 {[%clk 0:00:01.6]} 35. Rxb7+ {[%clk 0:01:04.8]} 35... Kd6
{[%clk 0:00:02]} 36. Nc4+ {[%clk 0:01:04.4]} 36... Kc5 {[%clk 0:00:02.5]} 37.
Rxb2 {[%clk 0:01:05]} 1-0

[Event "Early-Titled-Tuesday-Blitz-February-27-2024"]
[Site "Chess.com"]
[Date "2024.02.27"]
[Round "5"]
[White "kai_nov"]
[Black "Juicy_Fork"]
[Result "0-1"]
[WhiteElo "2335"]
[BlackElo "2520"]
[TimeControl "180+1"]
[EndTime "8:53:20 PST"]
[Termination "Juicy_Fork won by resignation"]

1. e4 {[%clk 0:02:47.6]} 1... e5 {[%clk 0:02:58.5]} 2. Nf3 {[%clk 0:02:46.6]}
2... Nc6 {[%clk 0:02:58.6]} 3. Bc4 {[%clk 0:02:45.2]} 3... Nf6 {[%clk
0:02:58.5]} 4. O-O {[%clk 0:02:40.6]} 4... Bc5 {[%clk 0:02:55.8]} 5. d4 {[%clk
0:02:39.1]} 5... exd4 {[%clk 0:02:41.7]} 6. e5 {[%clk 0:02:37.9]} 6... d5 {[%clk
0:02:21.8]} 7. exf6 {[%clk 0:02:33.2]} 7... dxc4 {[%clk 0:02:18.7]} 8. fxg7
{[%clk 0:02:31.5]} 8... Rg8 {[%clk 0:02:18.4]} 9. Re1+ {[%clk 0:02:22.3]} 9...
Be6 {[%clk 0:02:15.1]} 10. Ng5 {[%clk 0:02:20.3]} 10... Qd5 {[%clk 0:02:05.4]}
11. Nc3 {[%clk 0:02:12.3]} 11... Qf5 {[%clk 0:01:57.6]} 12. Nxe6 {[%clk
0:01:53.7]} 12... fxe6 {[%clk 0:01:55.4]} 13. Ne4 {[%clk 0:01:49]} 13... O-O-O
{[%clk 0:01:52.4]} 14. Bg5 {[%clk 0:01:39.9]} 14... Be7 {[%clk 0:01:47.9]} 15.
Bxe7 {[%clk 0:01:36.5]} 15... Nxe7 {[%clk 0:01:48.8]} 16. Qf3 {[%clk 0:01:26]}
16... Rxg7 {[%clk 0:01:41.6]} 17. Qxf5 {[%clk 0:01:22.5]} 17... Nxf5 {[%clk
0:01:23.6]} 18. Nc5 {[%clk 0:01:14.7]} 18... Nh4 {[%clk 0:01:17.9]} 19. Nxe6
{[%clk 0:00:59.1]} 19... Rxg2+ {[%clk 0:01:17.6]} 20. Kf1 {[%clk 0:00:55.1]}
20... Rd6 {[%clk 0:01:08.1]} 21. Nc5 {[%clk 0:00:51.4]} 21... Rg8 {[%clk
0:00:59.1]} 22. Re4 {[%clk 0:00:48.8]} 22... Nf3 {[%clk 0:00:48.5]} 23. Ke2
{[%clk 0:00:42.9]} 23... Ng5 {[%clk 0:00:38.8]} 24. Rg4 {[%clk 0:00:39.9]} 24...
Re8+ {[%clk 0:00:34.8]} 25. Kf1 {[%clk 0:00:37]} 25... Nf3 {[%clk 0:00:30.9]}
26. Rf4 {[%clk 0:00:35.8]} 26... Nxh2+ {[%clk 0:00:19.8]} 27. Kg2 {[%clk
0:00:35.9]} 27... Rg8+ {[%clk 0:00:19.7]} 28. Kxh2 {[%clk 0:00:36]} 28... Rh6+
{[%clk 0:00:19.7]} 0-1

[Event "Early-Titled-Tuesday-Blitz-February-27-2024"]
[Site "Chess.com"]
[Date "2024.02.27"]
[Round "5"]
[White "Better_Chess_Faster"]
[Black "Matalon"]
[Result "1-0"]
[WhiteElo "2138"]
[BlackElo "2455"]
[TimeControl "180+1"]
[EndTime "8:53:21 PST"]
[Termination "Better_Chess_Faster won by checkmate"]

1. d4 {[%clk 0:03:00.9]} 1... Nf6 {[%clk 0:02:55.8]} 2. Bg5 {[%clk 0:03:00.6]}
2... c5 {[%clk 0:02:44.7]} 3. d5 {[%clk 0:02:59.9]} 3... Qb6 {[%clk 0:02:43.6]}
4. Nc3 {[%clk 0:02:56.4]} 4... Qxb2 {[%clk 0:02:42.4]} 5. Bd2 {[%clk 0:02:55.6]}
5... Qb6 {[%clk 0:02:41.4]} 6. Rb1 {[%clk 0:02:54.5]} 6... Qd8 {[%clk
0:02:39.4]} 7. e4 {[%clk 0:02:54.4]} 7... d6 {[%clk 0:02:39.3]} 8. f4 {[%clk
0:02:54.5]} 8... g6 {[%clk 0:02:27.3]} 9. Nf3 {[%clk 0:02:54.4]} 9... Bg7 {[%clk
0:02:27.2]} 10. Bb5+ {[%clk 0:02:47.7]} 10... Kf8 {[%clk 0:02:21.6]} 11. O-O
{[%clk 0:02:44.6]} 11... a6 {[%clk 0:02:21.6]} 12. Bd3 {[%clk 0:02:39.1]} 12...
b5 {[%clk 0:02:21.9]} 13. e5 {[%clk 0:02:35.8]} 13... dxe5 {[%clk 0:02:16.6]}
14. fxe5 {[%clk 0:02:34.3]} 14... Nxd5 {[%clk 0:02:16.3]} 15. Ng5 {[%clk
0:02:24.3]} 15... f5 {[%clk 0:02:10.4]} 16. exf6 {[%clk 0:02:17.7]} 16... exf6
{[%clk 0:02:09.6]} 17. Nxd5 {[%clk 0:02:13.1]} 17... Qxd5 {[%clk 0:02:08.8]} 18.
Be4 {[%clk 0:02:01.2]} 18... Qd4+ {[%clk 0:02:02.3]} 19. Kh1 {[%clk 0:02:00.2]}
19... Ra7 {[%clk 0:02:02.9]} 20. c3 {[%clk 0:01:31.9]} 20... Qd8 {[%clk
0:01:48.5]} 21. Qf3 {[%clk 0:01:26]} 21... Re7 {[%clk 0:01:44]} 22. Rbd1 {[%clk
0:01:23.2]} 22... Qb6 {[%clk 0:01:38.9]} 23. Bf4 {[%clk 0:01:19.4]} 23... Nd7
{[%clk 0:01:37.1]} 24. Bd6 {[%clk 0:01:14.8]} 24... Ke8 {[%clk 0:01:24.3]} 25.
Bc6 {[%clk 0:01:08.2]} 25... fxg5 {[%clk 0:01:12.9]} 26. Bxe7 {[%clk 0:01:07]}
26... Kxe7 {[%clk 0:01:12.6]} 27. Qf7+ {[%clk 0:01:02.1]} 27... Kd8 {[%clk
0:01:12.3]} 28. Bxd7 {[%clk 0:00:57.6]} 28... Rf8 {[%clk 0:01:04.8]} 29. Be8+
{[%clk 0:00:46.7]} 29... Bd4 {[%clk 0:00:59.9]} 30. Qxf8 {[%clk 0:00:41.8]}
30... Bb7 {[%clk 0:01:00.1]} 31. cxd4 {[%clk 0:00:34.7]} 31... c4 {[%clk
0:00:59.1]} 32. Bxb5+ {[%clk 0:00:25.4]} 32... Kc7 {[%clk 0:00:57.2]} 33. Bxc4
{[%clk 0:00:24.4]} 33... Qc6 {[%clk 0:00:55.8]} 34. d5 {[%clk 0:00:19.2]} 34...
Qa4 {[%clk 0:00:51.6]} 35. Qc5+ {[%clk 0:00:18]} 35... Kd7 {[%clk 0:00:46.1]}
36. Rf7+ {[%clk 0:00:17.5]} 36... Ke8 {[%clk 0:00:46.1]} 37. Qe7# {[%clk
0:00:15.8]} 1-0

[Event "Early-Titled-Tuesday-Blitz-February-27-2024"]
[Site "Chess.com"]
[Date "2024.02.27"]
[Round "5"]
[White "Keures"]
[Black "kibromNNN"]
[Result "1-0"]
[WhiteElo "2370"]
[BlackElo "1792"]
[TimeControl "180+1"]
[EndTime "8:53:24 PST"]
[Termination "Keures won on time"]

1. d4 {[%clk 0:03:00.9]} 1... Nf6 {[%clk 0:02:56.3]} 2. c4 {[%clk 0:03:00.5]}
2... e6 {[%clk 0:02:52.2]} 3. Nc3 {[%clk 0:02:59.8]} 3... d5 {[%clk 0:02:52.1]}
4. cxd5 {[%clk 0:02:57.7]} 4... exd5 {[%clk 0:02:49.4]} 5. Bg5 {[%clk
0:02:57.3]} 5... Be7 {[%clk 0:02:47.4]} 6. e3 {[%clk 0:02:56.7]} 6... O-O {[%clk
0:02:43.1]} 7. Bd3 {[%clk 0:02:56.2]} 7... Nbd7 {[%clk 0:02:37.6]} 8. f3 {[%clk
0:02:52.5]} 8... Re8 {[%clk 0:02:32.7]} 9. Nge2 {[%clk 0:02:50.7]} 9... c6
{[%clk 0:02:30]} 10. O-O {[%clk 0:02:49]} 10... Nf8 {[%clk 0:02:25.7]} 11. e4
{[%clk 0:02:33.1]} 11... dxe4 {[%clk 0:02:17.7]} 12. fxe4 {[%clk 0:02:32.5]}
12... Bg4 {[%clk 0:02:15.9]} 13. Bxf6 {[%clk 0:02:19.7]} 13... Bxf6 {[%clk
0:02:11.8]} 14. e5 {[%clk 0:02:20.1]} 14... Bg5 {[%clk 0:02:02.7]} 15. Bc4
{[%clk 0:02:03.5]} 15... Ne6 {[%clk 0:01:56.5]} 16. h3 {[%clk 0:01:49.7]} 16...
Bh5 {[%clk 0:01:52]} 17. g4 {[%clk 0:01:47.9]} 17... Bg6 {[%clk 0:01:42.1]} 18.
Kg2 {[%clk 0:01:22.2]} 18... Be3 {[%clk 0:01:30.4]} 19. Bxe6 {[%clk 0:01:18.7]}
19... Rxe6 {[%clk 0:01:26.6]} 20. Rf3 {[%clk 0:01:18.9]} 20... Bg5 {[%clk
0:01:18.2]} 21. Qa4 {[%clk 0:01:13.5]} 21... b5 {[%clk 0:01:17.1]} 22. Qb4
{[%clk 0:01:12.8]} 22... a5 {[%clk 0:01:15.1]} 23. Qc5 {[%clk 0:01:12.5]} 23...
b4 {[%clk 0:01:13.6]} 24. Na4 {[%clk 0:01:09.6]} 24... Be4 {[%clk 0:01:12.1]}
25. Rf1 {[%clk 0:01:06.4]} 25... h5 {[%clk 0:00:58.2]} 26. Ng3 {[%clk
0:01:04.9]} 26... Bxf3+ {[%clk 0:00:55.4]} 27. Rxf3 {[%clk 0:01:05.8]} 27...
hxg4 {[%clk 0:00:51.4]} 28. hxg4 {[%clk 0:01:05.6]} 28... Be7 {[%clk 0:00:29.8]}
29. Qc4 {[%clk 0:01:03]} 29... Rb8 {[%clk 0:00:14.5]} 30. b3 {[%clk 0:01:00.8]}
30... Bf8 {[%clk 0:00:08.1]} 31. Ne4 {[%clk 0:01:00.5]} 1-0

[Event "Early-Titled-Tuesday-Blitz-February-27-2024"]
[Site "Chess.com"]
[Date "2024.02.27"]
[Round "5"]
[White "esrosenberg"]
[Black "Predator0608"]
[Result "1-0"]
[WhiteElo "2438"]
[BlackElo "2572"]
[TimeControl "180+1"]
[EndTime "8:53:27 PST"]
[Termination "esrosenberg won by resignation"]

1. d4 {[%clk 0:02:59.9]} 1... b6 {[%clk 0:03:00.9]} 2. Bg5 {[%clk 0:02:58]} 2...
Bb7 {[%clk 0:03:01.8]} 3. Nc3 {[%clk 0:02:52.6]} 3... h6 {[%clk 0:03:01.8]} 4.
Bh4 {[%clk 0:02:52.9]} 4... g6 {[%clk 0:03:00.8]} 5. Nf3 {[%clk 0:02:51.1]} 5...
Bg7 {[%clk 0:03:00.9]} 6. e3 {[%clk 0:02:51.7]} 6... Nf6 {[%clk 0:03:00.8]} 7.
Bc4 {[%clk 0:02:51]} 7... d6 {[%clk 0:02:58.7]} 8. a4 {[%clk 0:02:50.8]} 8... a5
{[%clk 0:02:58.2]} 9. O-O {[%clk 0:02:49.9]} 9... Nbd7 {[%clk 0:02:57.9]} 10.
Re1 {[%clk 0:02:49.7]} 10... O-O {[%clk 0:02:47.1]} 11. e4 {[%clk 0:02:45.5]}
11... e5 {[%clk 0:02:47.2]} 12. dxe5 {[%clk 0:02:45]} 12... dxe5 {[%clk
0:02:48.1]} 13. Nd5 {[%clk 0:02:44.7]} 13... g5 {[%clk 0:02:46.1]} 14. Bg3
{[%clk 0:02:44.6]} 14... Ne8 {[%clk 0:02:35.9]} 15. c3 {[%clk 0:02:24.9]} 15...
c6 {[%clk 0:02:32.5]} 16. Ne3 {[%clk 0:02:23.7]} 16... Kh7 {[%clk 0:01:38.3]}
17. Nf5 {[%clk 0:02:21.6]} 17... Bf6 {[%clk 0:01:29.1]} 18. Qd2 {[%clk
0:01:59.8]} 18... Qc7 {[%clk 0:01:22.9]} 19. Rad1 {[%clk 0:01:57.9]} 19... Rd8
{[%clk 0:01:20.7]} 20. Qc1 {[%clk 0:01:56.6]} 20... Bc8 {[%clk 0:00:41.7]} 21.
h4 {[%clk 0:01:56.4]} 21... Ng7 {[%clk 0:00:34.4]} 22. hxg5 {[%clk 0:01:31.5]}
22... Nxf5 {[%clk 0:00:31.4]} 23. exf5 {[%clk 0:01:31.9]} 23... hxg5 {[%clk
0:00:29.9]} 24. Nxg5+ {[%clk 0:01:32.4]} 24... Kg7 {[%clk 0:00:28.1]} 25. Bxf7
{[%clk 0:01:22.6]} 25... Nc5 {[%clk 0:00:25.9]} 26. Bg6 {[%clk 0:01:08.4]} 26...
Nd3 {[%clk 0:00:20.3]} 27. Rxd3 {[%clk 0:01:08.3]} 27... Rxd3 {[%clk 0:00:21.2]}
28. Nh7 {[%clk 0:00:57.1]} 28... Rxg3 {[%clk 0:00:14]} 29. fxg3 {[%clk
0:00:52.6]} 29... Bd8 {[%clk 0:00:13.5]} 30. Nxf8 {[%clk 0:00:51.6]} 30... Kxf8
{[%clk 0:00:11.9]} 31. Qh6+ {[%clk 0:00:51.4]} 31... Kg8 {[%clk 0:00:12.4]} 32.
Rxe5 {[%clk 0:00:46.4]} 1-0

[Event "Early-Titled-Tuesday-Blitz-February-27-2024"]
[Site "Chess.com"]
[Date "2024.02.27"]
[Round "5"]
[White "krzyzan94"]
[Black "chesstrainer2042"]
[Result "1-0"]
[WhiteElo "2796"]
[BlackElo "2559"]
[TimeControl "180+1"]
[EndTime "8:53:28 PST"]
[Termination "krzyzan94 won by resignation"]

1. Nf3 {[%clk 0:02:59.7]} 1... Nf6 {[%clk 0:02:59.6]} 2. g3 {[%clk 0:02:57.2]}
2... d5 {[%clk 0:02:58.6]} 3. Bg2 {[%clk 0:02:57.6]} 3... Bf5 {[%clk 0:02:59]}
4. O-O {[%clk 0:02:56.5]} 4... e6 {[%clk 0:02:57.1]} 5. c4 {[%clk 0:02:53.5]}
5... c6 {[%clk 0:02:54.7]} 6. d3 {[%clk 0:02:53.1]} 6... Nbd7 {[%clk 0:02:46]}
7. Nc3 {[%clk 0:02:48.8]} 7... Be7 {[%clk 0:02:42.3]} 8. cxd5 {[%clk 0:02:48]}
8... exd5 {[%clk 0:02:41.5]} 9. e4 {[%clk 0:02:38.7]} 9... dxe4 {[%clk
0:02:35.3]} 10. dxe4 {[%clk 0:02:36]} 10... Nxe4 {[%clk 0:02:11.9]} 11. Nd4
{[%clk 0:02:30.9]} 11... Nxc3 {[%clk 0:02:11.7]} 12. bxc3 {[%clk 0:02:31.8]}
12... Bg6 {[%clk 0:02:10.5]} 13. Re1 {[%clk 0:02:30.6]} 13... O-O {[%clk
0:01:52.9]} 14. Bxc6 {[%clk 0:02:30.4]} 14... Nc5 {[%clk 0:01:32.6]} 15. Bxb7
{[%clk 0:02:20.7]} 15... Nxb7 {[%clk 0:01:16]} 16. Nc6 {[%clk 0:02:20.6]} 16...
Qxd1 {[%clk 0:01:16.6]} 17. Nxe7+ {[%clk 0:02:20.3]} 17... Kh8 {[%clk 0:01:16]}
18. Nxg6+ {[%clk 0:02:11.3]} 18... hxg6 {[%clk 0:01:16.3]} 19. Rxd1 {[%clk
0:02:12.2]} 19... Rac8 {[%clk 0:01:16.6]} 20. Rd7 {[%clk 0:02:08]} 20... Nd8
{[%clk 0:00:59.8]} 21. Rxa7 {[%clk 0:02:00.4]} 21... Rxc3 {[%clk 0:01:00.2]} 22.
a4 {[%clk 0:01:53.4]} 22... Nc6 {[%clk 0:00:57.1]} 23. Rc7 {[%clk 0:01:50.6]}
23... Rc4 {[%clk 0:00:54.6]} 24. Be3 {[%clk 0:01:41.5]} 24... f5 {[%clk
0:00:49.3]} 25. Kg2 {[%clk 0:01:27.1]} 25... Ra8 {[%clk 0:00:36.7]} 26. a5
{[%clk 0:01:14.6]} 26... Ra6 {[%clk 0:00:25.9]} 27. Bb6 {[%clk 0:01:01.3]} 27...
Ne5 {[%clk 0:00:23]} 28. Rb7 {[%clk 0:00:52.5]} 28... Rc2 {[%clk 0:00:21.1]} 29.
Bd4 {[%clk 0:00:48.9]} 29... Ng4 {[%clk 0:00:17]} 30. Bxg7+ {[%clk 0:00:41.4]}
30... Kg8 {[%clk 0:00:16.6]} 31. Bd4 {[%clk 0:00:41.1]} 31... Kf8 {[%clk
0:00:16.9]} 32. h3 {[%clk 0:00:40.8]} 32... Nh6 {[%clk 0:00:16.5]} 33. Bg7+
{[%clk 0:00:40.4]} 1-0

[Event "Early-Titled-Tuesday-Blitz-February-27-2024"]
[Site "Chess.com"]
[Date "2024.02.27"]
[Round "5"]
[White "Chess_Gainz"]
[Black "hmatyi07"]
[Result "1-0"]
[WhiteElo "2531"]
[BlackElo "2304"]
[TimeControl "180+1"]
[EndTime "8:53:28 PST"]
[Termination "Chess_Gainz won by checkmate"]

1. e4 {[%clk 0:03:00.9]} 1... c5 {[%clk 0:02:59]} 2. Nf3 {[%clk 0:03:00.6]} 2...
e6 {[%clk 0:02:58.4]} 3. d4 {[%clk 0:03:00.4]} 3... cxd4 {[%clk 0:02:59.3]} 4.
Nxd4 {[%clk 0:03:00.8]} 4... Nf6 {[%clk 0:02:59.7]} 5. Nc3 {[%clk 0:03:00.8]}
5... Nc6 {[%clk 0:02:59.7]} 6. a3 {[%clk 0:03:00.9]} 6... Be7 {[%clk 0:02:55.4]}
7. Be3 {[%clk 0:02:58]} 7... O-O {[%clk 0:02:55]} 8. f4 {[%clk 0:02:57.8]} 8...
d5 {[%clk 0:02:49.7]} 9. e5 {[%clk 0:02:57.6]} 9... Nd7 {[%clk 0:02:48.3]} 10.
Qf3 {[%clk 0:02:57.8]} 10... Bc5 {[%clk 0:02:34]} 11. O-O-O {[%clk 0:02:56.5]}
11... Qb6 {[%clk 0:02:28.1]} 12. Na4 {[%clk 0:02:55.2]} 12... Qa5 {[%clk
0:01:49]} 13. Nxc5 {[%clk 0:02:54.8]} 13... Nxc5 {[%clk 0:01:42.7]} 14. Nxc6
{[%clk 0:02:55]} 14... bxc6 {[%clk 0:01:39.7]} 15. Bxc5 {[%clk 0:02:54.9]} 15...
Qxc5 {[%clk 0:01:39.1]} 16. Bd3 {[%clk 0:02:16]} 16... a5 {[%clk 0:01:33.2]} 17.
f5 {[%clk 0:02:14.7]} 17... exf5 {[%clk 0:01:25.1]} 18. Bxf5 {[%clk 0:02:15]}
18... Bxf5 {[%clk 0:01:21.6]} 19. Qxf5 {[%clk 0:02:15.2]} 19... Rab8 {[%clk
0:01:15.1]} 20. Rd3 {[%clk 0:02:12.8]} 20... Rb7 {[%clk 0:01:00.1]} 21. Rc3
{[%clk 0:01:46.9]} 21... Qd4 {[%clk 0:00:50.1]} 22. Rd1 {[%clk 0:01:38.1]} 22...
Qa4 {[%clk 0:00:49.2]} 23. Rh3 {[%clk 0:01:10.5]} 23... g6 {[%clk 0:00:48.7]}
24. Qg5 {[%clk 0:01:10.6]} 24... Rfb8 {[%clk 0:00:28.2]} 25. Qh6 {[%clk
0:01:10.8]} 25... f5 {[%clk 0:00:17.6]} 26. exf6 {[%clk 0:01:08]} 26... Qe4
{[%clk 0:00:09.4]} 27. Re3 {[%clk 0:00:52.5]} 27... Qf5 {[%clk 0:00:08.2]} 28.
Re7 {[%clk 0:00:45.3]} 28... Qxf6 {[%clk 0:00:04.6]} 29. Qxh7+ {[%clk 0:00:45]}
29... Kf8 {[%clk 0:00:05.1]} 30. Rxb7 {[%clk 0:00:43.7]} 30... Qf4+ {[%clk
0:00:02.4]} 31. Kb1 {[%clk 0:00:43.2]} 31... Re8 {[%clk 0:00:03]} 32. Qg7#
{[%clk 0:00:42.9]} 1-0

[Event "Early-Titled-Tuesday-Blitz-February-27-2024"]
[Site "Chess.com"]
[Date "2024.02.27"]
[Round "5"]
[White "Viacheslav92"]
[Black "the_blue_pill"]
[Result "0-1"]
[WhiteElo "2549"]
[BlackElo "2420"]
[TimeControl "180+1"]
[EndTime "8:53:32 PST"]
[Termination "the_blue_pill won by resignation"]

1. d4 {[%clk 0:03:00.9]} 1... Nf6 {[%clk 0:02:56.3]} 2. Bg5 {[%clk 0:03:01.1]}
2... e6 {[%clk 0:02:55.9]} 3. e4 {[%clk 0:03:00.2]} 3... h6 {[%clk 0:02:56.1]}
4. Bxf6 {[%clk 0:02:59.5]} 4... Qxf6 {[%clk 0:02:57]} 5. Nc3 {[%clk 0:03:00]}
5... Bb4 {[%clk 0:02:56.1]} 6. Ne2 {[%clk 0:02:55.8]} 6... e5 {[%clk 0:02:55.9]}
7. dxe5 {[%clk 0:02:52]} 7... Qxe5 {[%clk 0:02:54.2]} 8. Qd4 {[%clk 0:02:52.4]}
8... Qxd4 {[%clk 0:02:52.2]} 9. Nxd4 {[%clk 0:02:53.3]} 9... Bxc3+ {[%clk
0:02:52.1]} 10. bxc3 {[%clk 0:02:53.6]} 10... d6 {[%clk 0:02:49.1]} 11. f3
{[%clk 0:02:53.3]} 11... a6 {[%clk 0:02:45.7]} 12. Bc4 {[%clk 0:02:53.2]} 12...
Nd7 {[%clk 0:02:43.4]} 13. Kf2 {[%clk 0:02:51.8]} 13... Ne5 {[%clk 0:02:33.8]}
14. Bd3 {[%clk 0:02:49.1]} 14... Ke7 {[%clk 0:02:28.4]} 15. a4 {[%clk
0:02:47.8]} 15... c5 {[%clk 0:02:22.8]} 16. Nf5+ {[%clk 0:02:38.8]} 16... Bxf5
{[%clk 0:02:20.8]} 17. exf5 {[%clk 0:02:39.7]} 17... d5 {[%clk 0:02:12.2]} 18.
Rhb1 {[%clk 0:02:35.1]} 18... Rab8 {[%clk 0:02:09.5]} 19. Rb6 {[%clk 0:02:31]}
19... Nd7 {[%clk 0:02:01.5]} 20. Re1+ {[%clk 0:02:29.8]} 20... Kd8 {[%clk
0:01:50.7]} 21. Rd6 {[%clk 0:02:28.7]} 21... Kc7 {[%clk 0:01:46.7]} 22. Rxd5
{[%clk 0:02:26.1]} 22... Rhe8 {[%clk 0:01:47.1]} 23. Rxe8 {[%clk 0:01:54.9]}
23... Rxe8 {[%clk 0:01:46.9]} 24. Be4 {[%clk 0:01:55.4]} 24... b6 {[%clk
0:01:42.9]} 25. Rd1 {[%clk 0:01:50.6]} 25... a5 {[%clk 0:01:42.2]} 26. Bd3
{[%clk 0:01:48.6]} 26... Ne5 {[%clk 0:01:23.8]} 27. Bb5 {[%clk 0:01:47.5]} 27...
Rd8 {[%clk 0:01:23.6]} 28. Rxd8 {[%clk 0:01:46.8]} 28... Kxd8 {[%clk 0:01:21.1]}
29. Ke3 {[%clk 0:01:41.7]} 29... Ke7 {[%clk 0:01:15.2]} 30. Ke4 {[%clk
0:01:39.1]} 30... Kd6 {[%clk 0:01:13.6]} 31. h3 {[%clk 0:01:15.5]} 31... f6
{[%clk 0:01:12.8]} 32. g4 {[%clk 0:01:05.4]} 32... Nf7 {[%clk 0:01:08.3]} 33.
Bc4 {[%clk 0:01:02.8]} 33... Ne5 {[%clk 0:00:58.2]} 34. Bd5 {[%clk 0:00:58.7]}
34... Nxf3 {[%clk 0:00:53.7]} 35. Kxf3 {[%clk 0:00:58.3]} 35... Kxd5 {[%clk
0:00:53.9]} 36. Ke3 {[%clk 0:00:59.2]} 36... Kc4 {[%clk 0:00:50.2]} 37. Kd2
{[%clk 0:00:59.3]} 37... b5 {[%clk 0:00:49.3]} 38. axb5 {[%clk 0:00:57.7]} 38...
Kxb5 {[%clk 0:00:49.6]} 39. Kc1 {[%clk 0:00:58.6]} 39... Kc4 {[%clk 0:00:44.1]}
40. Kb2 {[%clk 0:00:59.5]} 40... a4 {[%clk 0:00:44.1]} 41. h4 {[%clk 0:00:56.5]}
41... a3+ {[%clk 0:00:43.2]} 42. Kxa3 {[%clk 0:00:54.4]} 42... Kxc3 {[%clk
0:00:44.1]} 43. Ka4 {[%clk 0:00:52.8]} 43... Kxc2 {[%clk 0:00:43.8]} 44. Kb5
{[%clk 0:00:53.2]} 44... Kd3 {[%clk 0:00:43.3]} 45. Kxc5 {[%clk 0:00:53.8]}
45... Ke4 {[%clk 0:00:43.6]} 46. Kd6 {[%clk 0:00:50.5]} 46... Kf4 {[%clk
0:00:43.5]} 47. Ke6 {[%clk 0:00:48.1]} 47... Kxg4 {[%clk 0:00:40.2]} 48. Kf7
{[%clk 0:00:48.7]} 48... Kxh4 {[%clk 0:00:39.2]} 49. Kxg7 {[%clk 0:00:48.8]}
49... Kg5 {[%clk 0:00:39.9]} 0-1